Cogmind - Beta 11 @@@ ROGUE MODE // 2022.04.20 @ 14:34:09 Player: Pogmind Result: Destroyed by 8R-AWN with 8R-AWN's Boregun Performance ------------- Evolutions (0) 0 Regions Visited (3) 600 Robots Destroyed (24) 120 Value Destroyed (481) 481 Prototype IDs (23) 460 Alien Tech Used (0) 0 Bonus (300) 300 TOTAL SCORE: 1961 Bonus ------- Aligned with FarCom 300 Cogmind --------- Core Integrity 0/250 Matter 207/300 Energy 77/240 System Corruption 3% Temperature Cool (0) Movement Core (700) Ox13 Location -10/Exiles Parts ------- > --- POWER (1) -------- Nuclear Core > --- PROPULSION (2) --- (None) > --- UTILITY (2) ------ Large Storage Unit Seismic Detector > --- WEAPON (2) ------- Latent Energy Streamer Autogun > --- INVENTORY (15) --- Light Treads Wheel Compact Wheel High-capacity Storage Unit High-capacity Matter Pod (200) Targeting Computer Targeting Computer Assault Rifle Autogun Autogun Autogun Bore Cannon Heavy Flail Peak State ------------ > --- POWER ------------ Nuclear Core > --- PROPULSION ------- (None) > --- UTILITY ---------- Large Storage Unit Seismic Detector > --- WEAPON ----------- Latent Energy Streamer Autogun > --- INVENTORY -------- Light Treads Wheel Compact Wheel High-capacity Storage Unit High-capacity Matter Pod Targeting Computer Targeting Computer Assault Rifle Autogun Autogun Autogun Bore Cannon Heavy Flail [Rating: 19] Favorites ----------- Power Ion Engine Engine Ion Engine Power Core Nuclear Core Propulsion Light Treads Treads Light Treads Wheel Compact Wheel Utility Seismic Detector Device Seismic Detector Storage Large Storage Unit Weapon Autogun Energy Cannon Latent Energy Streamer Ballistic Gun Autogun Ballistic Cannon Bore Cannon Launcher Rocket Launcher Build | -11 -10 -10 -10 ------- Run | Scr Mat Min Exi Slots Evolved . | . . . . Power . | . . . . Propulsion . | . . . . Utility . | . . . . Weapon . | . . . . Parts Attached 34 | 9 8 13 4 Power 3 | 1 . 1 1 Engine 2 | 1 . 1 . Core 1 | . . . 1 Reactor . | . . . . Propulsion 8 | 4 . 4 . Treads 4 | 2 . 2 . Leg . | . . . . Wheel 4 | 2 . 2 . Hover . | . . . . Flight . | . . . . Utility 12 | 2 4 6 . Device 3 | 1 . 2 . Storage 9 | 1 4 4 . Processor . | . . . . Hackware . | . . . . Protection . | . . . . Artifact . | . . . . Weapon 11 | 2 4 2 3 Energy Gun . | . . . . Energy Cannon 1 | . . . 1 Ballistic Gun 6 | 2 3 1 . Ballistic Cannon 1 | . . . 1 Launcher 3 | . 1 1 1 Special Weapon . | . . . . Impact Weapon . | . . . . Slashing Weapon . | . . . . Piercing Weapon . | . . . . Special Melee Weapon . | . . . . Unidentified Prototypes . | . . . . Parts Lost 4 | . . . 4 Power 1 | . . . 1 Propulsion 2 | . . . 2 Utility . | . . . . Weapon 1 | . . . 1 Highest Loss Streak 4 | . . . 4 To Critical Strikes . | . . . . Average Slot Usage (%) 99 | . 100 99 99 Engine 13 | . 14 14 13 Treads 27 | . 28 25 27 Device 13 | . 14 13 14 Storage 14 | . 14 14 14 Ballistic Gun 27 | . 28 27 27 Naked Turns . | . . . . Heaviest Build 92 | 14 32 92 38 Greatest Support 40 | 40 40 40 40 Greatest Overweight (x) 3 | 1 . 3 . Average Overweight (x) . | . . . . Largest Inventory Capacity 25 | 8 20 25 15 Average Capacity 14 | 7 14 15 15 Most Carried 16 | 6 15 16 15 Average Carried 14 | 5 14 14 14 Final Capacity 15 | 8 15 15 15 Final Carried 15 | 6 15 15 13 Class Distribution -------------------- 100% | Mutant Dominant Class ---------------- Mutant | -10/Materials Mutant | -10/Mines Mutant | -10/Exiles Resources | -11 -10 -10 -10 ----------- Run | Scr Mat Min Exi Matter Collected 1176 | 362 389 351 74 Remotely . | . . . . Salvage Created 867 | 191 369 284 23 Parts 49 | 13 24 12 . Haulers Intercepted 2 | . 2 . . Recyclers Shooed 2 | . 1 1 . Parts Field Recycled . | . . . . Retrieved Matter . | . . . . Parts Self-Destructed . | . . . . Prevented . | . . . . Kills | -11 -10 -10 -10 ------- Run | Scr Mat Min Exi Combat Hostiles Destroyed 18 | . 8 5 5 Guns 9 | . 5 4 . AOE 9 | . 3 1 5 Classes Destroyed 8 | 2 5 . 1 Worker 2 | . 1 1 . Tunneler 4 | 4 . . . Hauler 2 | . 2 . . Recycler 2 | 1 . 1 . Watcher 1 | . 1 . . Swarmer 3 | . 3 . . Grunt 10 | . 5 5 . Assembled 5 | . . . 5 Best Kill Streak 5 | 3 5 2 5 Combat Bots Only 5 | . 4 2 5 Max Kills in Single Turn 4 | 1 4 1 2 Gunslinging 1 | . 1 . . Exploded 3 | . 3 1 2 Melee . | . . . . Uniques/NPCs Destroyed . | . . . . Combat | -11 -10 -10 -10 -------- Run | Scr Mat Min Exi Damage Taken 969 | . 300 89 580 Core 260 | . 52 42 166 Absorbed by Shields . | . . . . Core Remaining (%) 100 | 100 . . . Volleys Fired 82 | 18 28 29 7 Largest 2 | 2 2 2 1 Hottest 57 | 40 46 46 57 Shots Fired 153 | 36 55 55 7 Gun 142 | 36 54 52 . Cannon 1 | . . . 1 Launcher 10 | . 1 3 6 Special . | . . . . Kinetic 143 | 36 54 52 1 Thermal . | . . . . Explosive 10 | . 1 3 6 Electromagnetic . | . . . . Robot Hit Streak 11 | 4 6 11 2 Robot Miss Streak 5 | 4 3 2 5 Penetration Max . | . . . . Secondary Targets 1 | . 1 . . Max Gunslinging Chain 1 | . 1 . . Shots Hit Robots 91 | 17 35 37 2 Core Hits 41 | 6 15 13 7 Critical Kills 1 | . . 1 . Critical Parts Destroyed 1 | . . 1 . Critical Strikes 2 | . . 2 . Destroy 2 | . . 2 . Melee Attacks . | . . . . Impact . | . . . . Slashing . | . . . . Piercing . | . . . . Sneak Attacks . | . . . . Combat Hostiles . | . . . . Follow-up Attacks . | . . . . Damage Inflicted 1970 | 183 781 667 339 Guns 1274 | 183 573 518 . Cannons . | . . . . Explosions 696 | . 208 149 339 Melee . | . . . . Ramming . | . . . . Kinetic 1274 | 183 573 518 . Thermal . | . . . . Explosive 696 | . 208 149 339 Electromagnetic . | . . . . Impact . | . . . . Slashing . | . . . . Piercing . | . . . . Highest Corruption 3 | . . . 3 Average Corruption 3 | . . . 3 Corruption Purged . | . . . . Corruption Blocked . | . . . . Overload Shots . | . . . . Overflow Damage 69 | . 17 . 52 Projectiles . | . . . . Explosions 69 | . 17 . 52 Melee . | . . . . Knockbacks . | . . . . Impact . | . . . . Kinetic . | . . . . Secondary . | . . . . Self-Inflicted Damage 97 | . . . 97 Shots 2 | . . . 2 Rammed . | . . . . Targets Rammed . | . . . . Kicked . | . . . . Crushed . | . . . . Highest Temperature 56 | . 56 22 16 Average Temperature 10 | . 14 6 12 Received Heat Transfer 198 | . 147 51 . Siege Activations . | . . . . Robots Corrupted . | . . . . Combat Hostiles . | . . . . Parts Fried . | . . . . Impact Corruptions . | . . . . Robots Melted . | . . . . Combat Hostiles . | . . . . Parts Melted . | . . . . Heat Transferred . | . . . . Parts Sabotaged . | . . . . Parts Stolen . | . . . . Parts Stripped . | . . . . Power Chain Reactions . | . . . . Missiles Intercepted . | . . . . Alert | -11 -10 -10 -10 ------- Run | Scr Mat Min Exi Peak Influence 286 | 25 286 224 . Initial 54 | . 16 54 . Average 96 | 12 96 110 . Maximum Alert Level 1 | . 1 1 . Low Security (%) 86 | 100 82 86 . Level 1 13 | . 17 13 . Level 2 . | . . . . Level 3 . | . . . . Level 4 . | . . . . Level 5 . | . . . . High Security . | . . . . Max Security . | . . . . Squads Dispatched 2 | . 1 1 . Investigation 1 | . . 1 . Extermination . | . . . . Reinforcement 1 | . 1 . . Assault . | . . . . Garrison . | . . . . Intercept . | . . . . Searches Triggered . | . . . . Construction Impeded . | . . . . Haulers Reinforced . | . . . . Active Scanning Responses . | . . . . Cargo Convoy Interrupts . | . . . . Stealth | -11 -10 -10 -10 --------- Run | Scr Mat Min Exi Distress Signals 1 | . 1 . . Communications Jammed . | . . . . Distress Signals . | . . . . Times Spotted 35 | . 17 11 7 Peak Tracking Total 10 | . 4 3 10 Tactical Retreats 6 | . . 6 . Traps | -11 -10 -10 -10 ------- Run | Scr Mat Min Exi Traps Triggered . | . . . . Indirectly . | . . . . Trap Hack Attempts . | . . . . Triggered . | . . . . Disarmed . | . . . . Reprogrammed . | . . . . Reused . | . . . . Traps Extracted . | . . . . Installed . | . . . . Triggered . | . . . . Machines | -11 -10 -10 -10 ---------- Run | Scr Mat Min Exi Machines Disabled 3 | . . 1 2 Max in Single Turn 1 | . . 1 1 Machines Sabotaged . | . . . . Garrisons Compromised . | . . . . Overloaded Fab Kills . | . . . . Hacking | -11 -10 -10 -10 --------- Run | Scr Mat Min Exi Machines Accessed 9 | . 4 1 4 Terminals 4 | . 4 . . Fabricators . | . . . . Repair Stations . | . . . . Recycling Units . | . . . . Scanalyzers . | . . . . Garrison Access . | . . . . Total Hacks 35 | . 7 1 27 Successful 34 | . 6 1 27 Failed 1 | . 1 . . Catastrophic . | . . . . Database Lockouts . | . . . . Manual 5 | . 4 . 1 Terminals 7 | . 7 . . Fabricators . | . . . . Repair Stations . | . . . . Recycling Units . | . . . . Scanalyzers . | . . . . Garrison Access . | . . . . Terminal Hacks 32 | . 4 1 27 Record 26 | . . . 26 Open Door 1 | . . 1 . Branch Access Points 1 | . 1 . . Locate Traps 2 | . 2 . . Hauler Manifests 1 | . 1 . . EX-Prototype ID Bank 1 | . . . 1 Fabricator Hacks . | . . . . Repair Station Hacks . | . . . . Recycling Unit Hacks . | . . . . Scanalyzer . | . . . . Garrison Access Hacks . | . . . . Unauthorized Hacks 2 | . 2 . . Terminals 2 | . 2 . . Botnet 2 | . 2 . . Fabricators . | . . . . Repair Stations . | . . . . Recycling Units . | . . . . Scanalyzers . | . . . . Garrison Access . | . . . . Data Cores Recovered . | . . . . Used . | . . . . Hacking Detections 2 | . 2 . . Full Trace Events . | . . . . Feedback Events . | . . . . Feedback Blocked . | . . . . Robot Schematics Acquired . | . . . . Robots Built . | . . . . Authchips . | . . . . Time . | . . . . Total Robot Build Rating . | . . . . Part Schematics Acquired . | . . . . Parts Built . | . . . . Authchips . | . . . . Time . | . . . . Total Part Build Rating . | . . . . Parts Repaired . | . . . . Time . | . . . . Parts Recycled . | . . . . Recycled Matter . | . . . . Retrieved Matter . | . . . . Retrieved Components . | . . . . Parts Scanalyzed . | . . . . Part Schematics Acquired . | . . . . Parts Damaged . | . . . . Bothacking | -11 -10 -10 -10 ------------ Run | Scr Mat Min Exi Used RIF Installer . | . . . . Robots Hacked . | . . . . Non-combat . | . . . . Combat . | . . . . Robot Hacks Applied . | . . . . Relay Couplers Released . | . . . . Fabnet Peak Effective % . | . . . . Robots Rewired . | . . . . Allies Hacked . | . . . . Hacks Repelled . | . . . . Allies | -11 -10 -10 -10 -------- Run | Scr Mat Min Exi Total Allies . | . . . . Largest Group . | . . . . Highest-Rated Group . | . . . . Highest-Rated Ally . | . . . . Total Orders . | . . . . Ally Attacks . | . . . . Total Damage . | . . . . Kills . | . . . . Allies Corrupted . | . . . . Allies Melted . | . . . . Intel | -11 -10 -10 -10 ------- Run | Scr Mat Min Exi Robot Analysis Total . | . . . . Derelict Logs Recovered 2 | . . 2 . Drone Launches . | . . . . Drone Recoveries . | . . . . Exploration | -11 -10 -10 -10 ------------- Run | Scr Mat Min Exi Turns Passed 3192 | 217 858 1287 830 Spaces Moved 1758 | 106 444 704 504 Core 1 | 1 . . . Treads 1673 | 76 444 649 504 Legs . | . . . . Wheels 84 | 29 . 55 . Hover . | . . . . Flight . | . . . . Fastest Speed 50 | 50 160 125 160 Average Speed 157 | 139 160 158 160 Slowest Speed 160 | 160 160 160 160 Overloaded Moves . | . . . . Propulsion Burnouts . | . . . . Robots Hopped . | . . . . Cave-ins Triggered . | . . . . Exploration Rate (%) 61 | 6 59 99 83 Regions Visited 3 Branch Regions 2 Pre-discovered Areas . | . . . . Known Exits Taken 1 | . 1 . . Unknown Exits Taken 2 | 1 . 1 . Scrap Searched 1 | . . 1 . Spaces Dug . | . . . . Terrain Destroyed 65 | . 13 33 19 Melee . | . . . . Projectile . | . . . . AOE 65 | . 13 33 19 Terrain Rammed . | . . . . Walls Destroyed . | . . . . Machines Disabled . | . . . . Actions | -11 -10 -10 -10 --------- Run | Scr Mat Min Exi Total 2042 | 138 548 835 521 Wait 125 | . 49 74 2 Move 1755 | 105 443 703 504 Hop . | . . . . Pick Up 26 | 6 12 6 2 Fast Attach 9 | 7 . 2 . Attach 2 | . . . 2 Detach . | . . . . Swap 23 | 2 8 11 2 Drop 20 | . 8 10 2 Fire 82 | 18 28 29 7 Melee . | . . . . Ram . | . . . . Kick . | . . . . Crush . | . . . . Escape Stasis . | . . . . Rewire . | . . . . Trap . | . . . . Miscellaneous . | . . . . Route ------- -11/Scrapyard -10/Materials (discovered 2 exits: [*Mat] / *Min) -10/Mines (discovered 3 exits: [*Mat x2] / *Exi) -10/Exiles History --------- Turn | Location | Event 21 | -11/Scrapyard | Discovered new exit (range 15) 218 | -11/Scrapyard | Entered Materials 321 | -10/Materials | Build established: Mutant 395 | -10/Materials | Identified exit to Mines 486 | -10/Materials | Discovered new exit (range 16) 1076 | -10/Materials | Entered Mines 1083 | -10/Mines | Learned Materials terminal intel 1208 | -10/Mines | Received a Rocket Launcher from a helpful Derelict 1556 | -10/Mines | Discovered new exit (range 7) 1576 | -10/Mines | Discovered new exit (range 8) 1829 | -10/Mines | Learned Materials terminal intel 1833 | -10/Mines | Deemed a non-threat by the Exiles lab entrance 1833 | -10/Mines | Discovered new exit (range 5) 2094 | -10/Mines | Met a Derelict shopkeep closing up shop 2220 | -10/Mines | A weapon hastily lodged in a ceiling crevice suddenly fell to the ground 2363 | -10/Mines | Entered Exiles 2403 | -10/Exiles | Met 8R-AWN 2432 | -10/Exiles | Met EX-HEX 2480 | -10/Exiles | Met EX-BIN 2623 | -10/Exiles | Met EX-DEC 2816 | -10/Exiles | Visited The Gauntlet 3058 | -10/Exiles | Aligned with FarCom system 3060 | -10/Exiles | Given EX-Vault access code 3097 | -10/Exiles | Opened EX-Vault 3107 | -10/Exiles | Found Latent Energy Streamer 3141 | -10/Exiles | Warned to stay clear of 0b10 Research branches 3162 | -10/Exiles | Attacked by the Exiles 3187 | -10/Exiles | Core integrity fell below 50% 3190 | -10/Exiles | Core integrity fell below 20% 3193 | -10/Exiles | Destroyed by 8R-AWN with 8R-AWN's Boregun Last Messages --------------- 03174_ as-05728 destroyed. 03175_ Machine disabled. 03179_ as-39913 destroyed. 03179_ as-79897 destroyed. 03179_ Destroyed Asb. Hover Unit. 03181_ as-85149 destroyed. 03185_ Lgt. Treads destroyed. 03186_ Ion Engine destroyed. 03186_ System corrupted by crushing effect (+3). 03186_ HV Slug penetrates Machine. 03186_ Penetrated by HV Slug. 03187_ as-21856 destroyed. 03187_ Lgt. Treads destroyed. 03187_ Destroyed Lgt. Treads. 03188_ Penetrated by HV Slug. 03189_ Destroyed Asb. Hover Unit. 03189_ as-74956 destroyed. 03190_ Penetrated by HV Slug. 03190_ Rocket Launcher destroyed. 03193_ Penetrated by HV Slug. Map ----- +----------------------------------------------------+ | ??????????????????#""X" #????????????????? | | ??????????????????#" #????????????????? | | ??????????????????#" ## #????????????????? | | ??????????????????#""""""## #?#########??????? | | ??????????????????##"###### #?#"""""""#??????? | | ?????????????????? "#????# #?#"""""""#??????? | | ?????????????????""" #????# #?#"""""""#??????? | | ????????????????#""" #???## ###"" """"#??????? | | ??????????????????"" #???#" """"#??????? | | ???????????????????###???#" """#??????? | | ?????????????????????????#" """#??????? | | ?????????????????????????#" """#??????? | | ??????????########???????#" """#??????? | | ??????????# """#???????#" """##?????? | | ??????????#"" """#???????## """""?????? | | ??????????#"" #????????# "##?????? | | ??????????#"" #????????#" "X" """""?????? | | ??????????#"" "#????????#" """ #??????? | | ??????????# ""#????????#" """""""""#??????? | | ??????????#"" ""#??????###" ###########??????? | | ??????????### ###?????## #????????????????? | | #####????### ###?##### #????????????????? | | """#####X# #"###"" ##???????????????? | | """""" ##???###########? | | "" """ % #####"""""""""## | | " " @ """ """"# | | "" " | | ## " """ | | ?## " " | | ??## " " | | ???##" %% " | | ????#""" """""" | | ???##" ######""" % | | ???#"" ""##????#####" a | | ??##""" """##?????????## | | ??#""" """##???????????#"""" | | ??#""" ""#???????????##"" | | ??#"" ########??####"""" | | ??#""" ## ####""" | | ??#"" """" | | ??##"" | | ???#"""" | | ???## " | | ????#" " "" """ | | ????#"""" ""## ##""" " " ""#" | | ????#"" ""#### ######""" """##""""" | | ????#" """"##??# #?????##""""?####### | | ????#""" """#??## ####????####???????? | | ????## ""##??#! "!#???????????????? | | ?????#"" """##???#" !#???????????????? | +----------------------------------------------------+ Best States ------------- Heat Dissipation 25 Energy Generation 10 Energy Capacity 250 Matter Stores 300 Matter Capacity 300 Sight Range 16 Terrain Scan Density 10 Evasion (%) 44 Recoil Reduction 2 Item Schematics ----------------- None Robot Schematics ------------------ None Fabricated ------------ Nothing Alien Tech Used ----------------- None Achievements -------------- None Challenges ------------ None Game ------ Seed NavigationReactionFlamer Manual? 1 Play Time 00:21:32 Cumulative 361.9 hours Start 2022.04.20 @ 14:11:04 End 2022.04.20 @ 14:34:09 Sessions 3 Manual Loads 0 Difficulty Rogue Special Mode None Game No. 19 Rogue 14 Adventurer 5 Explorer 0 Win Type - Total 17 Types 4/4/2/0/3/1/2/0/1 Lore% 68 Gallery% 79 Achievement% 76 Wizard Run 0 Options --------- ASCII 0 Keyboard 0 Movement Mouse Keybinds 0 Fullscreen 1 Font 16/SmallcapsGlow Map View 76x50 Tactical HUD 1 Map Filters NONE Filters NONE Steam 1 RUN: c4f66f29-e021-43a5-a269-eeee6e07d9bf